fUST/lending_fUST_20260311
["ID","MTS","AMOUNT","RATE_DAILY","PERIOD"]
[408124147,1773160242172,-440.34469607,0.0001084,2]
[408124149,1773160242182,-442.47537097,0.00010854,2]
[408124151,1773160242192,-1584.61946789,0.00010854,2]
[408124153,1773160242200,-924.51191795,0.00010872,2]
[408124155,1773160242209,-506.0,0.000109,2]
[408124157,1773160242218,-461.87254415,0.00010904,17]
[408124159,1773160242228,-1000.0,0.00010914,2]
[408124161,1773160242237,-1000.0,0.00010958,2]
[408124163,1773160242247,-392.511234,0.00010959,2]
[408124165,1773160242258,-392.511234,0.00010959,2]
[408124167,1773160242268,-392.511234,0.00010959,2]
[408124169,1773160242277,-392.511234,0.00010959,2]
[408124171,1773160242287,-392.511234,0.00010959,2]
[408124173,1773160242296,-1040.0,0.00011,2]
[408124175,1773160242305,-1000.0,0.00011016,2]
[408124177,1773160242314,-341.53426957,0.00011037,2]
[408124180,1773160242324,-233.19432907,0.00011037,2]
[408124181,1773160242333,-202.4191681,0.00011037,2]
[408124184,1773160242343,-287.76080434,0.0001107,2]
[408124186,1773160242352,-207.86921061,0.0001107,2]
[408124187,1773160242361,-1000.0,0.00011118,2]
[408124189,1773160242371,-461.87254415,0.00011171,19]
[408124192,1773160242380,-1000.0,0.00011177,2]
[408124193,1773160242390,-1000.0,0.0001122,2]
[408124196,1773160242399,-1602.66224047,0.00011232,7]
[408124197,1773160242408,-440.34469607,0.0001126,7]
[408124199,1773160242418,-681.73042509,0.0001126,7]
[408124201,1773160242427,-442.47537097,0.00011281,7]
[408124203,1773160242438,-1584.61946789,0.00011281,7]
[408124205,1773160242447,-924.51191795,0.00011308,7]
[408124207,1773160242456,-1000.0,0.00011322,2]
[408124210,1773160242467,-1000.0,0.00011396,2]
[408124211,1773160242483,-426262.78257647,0.000114,2]
[408124214,1773160242502,-45551.42,0.000114,2]
[408124384,1773160244237,-1230.0,6.542e-05,2]
[408124630,1773160246415,-2043.8692645,6.542e-05,2]
[408126075,1773161228134,-478.76312498,5.977e-05,2]
[408126076,1773161235141,-1078.94710283,5.977e-05,2]
[408126077,1773161235161,-208.09242559,6.007e-05,2]
[408126078,1773161235181,-291.70930327,6.037e-05,2]
[408127039,1773161349121,-2796.2563329,5.886e-05,2]
[408127040,1773161349144,-5000.0,5.977e-05,2]
[408127042,1773161349168,-338.79920398,6.222e-05,2]
[408127044,1773161349196,-170.20079602,6.222e-05,2]
[408127453,1773161431500,-675.42364712,6.791e-05,2]
[408127455,1773161431514,-948.33945034,6.791e-05,2]
[408127459,1773161431554,-410.71337545,6.791e-05,2]
[408127463,1773161431669,-53.19590278,6.791e-05,2]
[408127464,1773161431680,-394.47750578,6.791e-05,2]
[408127471,1773161437837,-175.41653686,6.791e-05,2]
[408127472,1773161437849,-1000.0,6.791e-05,2]
[408127473,1773161437860,-755.67503159,6.791e-05,2]
[408127584,1773161440720,-586.75855008,6.791e-05,2]
[408127586,1773161440730,-266.29535379,6.791e-05,2]
[408127588,1773161440741,-249.70464621,6.791e-05,2]
[408127590,1773161440750,-175.593,6.86e-05,2]
[408127592,1773161440759,-508.60060658,6.871e-05,2]
[408127594,1773161440770,-691.39939342,6.871e-05,2]
[408127596,1773161440778,-300.0,6.872e-05,2]
[408127598,1773161440787,-500.0,6.873e-05,2]
[408127600,1773161440796,-21.69017227,6.873e-05,2]
[408127602,1773161440807,-478.30982773,6.873e-05,2]
[408127604,1773161440815,-500.0,6.873e-05,2]
[408127606,1773161440825,-500.0,6.873e-05,2]
[408127608,1773161440834,-500.0,6.873e-05,2]
[408127610,1773161440843,-528.32017505,6.873e-05,2]
[408127612,1773161440852,-408.49518185,6.873e-05,2]
[408127614,1773161440860,-500.0,6.873e-05,2]
[408127616,1773161440869,-500.0,6.873e-05,2]
[408127618,1773161440879,-500.0,6.873e-05,2]
[408127620,1773161440887,-500.0,6.873e-05,2]
[408127622,1773161440896,-212.17768654,6.873e-05,2]
[408127624,1773161440906,-9001.61999352,6.9e-05,2]
[408127791,1773161442735,-1301.8487202,6.9e-05,2]
[408127802,1773161442837,-500.0,6.9e-05,2]
[408127804,1773161442848,-4614.4999995,6.9e-05,2]
[408127810,1773161442890,-1277.19886918,6.9e-05,2]
[408128094,1773161445685,-10012.14336574,6.9e-05,2]
[408130897,1773162047192,-4620.56009413,5.623e-05,2]
[408130901,1773162242460,-5000.0,5.511e-05,2]
[408130902,1773162242481,-209.85851682,5.595e-05,2]
[408130903,1773162242500,-502.0,5.68e-05,2]
[408130904,1773162242521,-300.0,5.794e-05,2]
[408130905,1773162242540,-3944.4328137,5.795e-05,2]
[408130906,1773162242564,-43.70866948,5.802e-05,2]
[408130907,1773162261329,-1367.8905259,5.456e-05,2]
[408130908,1773162261351,-1458.62648922,5.802e-05,2]
[408130909,1773162261376,-300.0,5.917e-05,2]
[408130910,1773162261405,-300.0,5.917e-05,2]
[408130911,1773162261433,-300.0,5.917e-05,2]
[408130912,1773162261458,-300.0,5.917e-05,2]
[408130913,1773162261484,-300.0,5.917e-05,2]
[408130914,1773162261507,-300.0,5.917e-05,2]
[408130915,1773162261529,-300.0,5.917e-05,2]
[408130916,1773162261554,-300.0,5.917e-05,2]
[408130917,1773162261578,-300.0,5.917e-05,2]
[408130918,1773162261602,-300.0,5.917e-05,2]
[408130919,1773162261627,-173.48298488,5.917e-05,2]
[408131232,1773162454103,-375.03055619,5.799e-05,2]
[408131234,1773162548349,-4624.96944381,5.799e-05,2]
[408131235,1773162548368,-205.66134648,5.858e-05,2]
[408131236,1773162548397,-1200.0,5.916e-05,2]
[408131237,1773162548433,-500.0,5.92e-05,2]
[408131238,1773162548452,-500.0,5.92e-05,2]
[408131239,1773162548477,-500.0,5.92e-05,2]
[408131240,1773162548499,-300.0,6.037e-05,2]
[408131241,1773162548522,-300.0,6.037e-05,2]
[408131242,1773162548545,-300.0,6.037e-05,2]
[408131243,1773162548571,-300.0,6.037e-05,2]
[408131244,1773162548597,-300.0,6.037e-05,2]
[408131245,1773162548624,-300.0,6.037e-05,2]
[408131246,1773162548649,-300.0,6.037e-05,2]
[408131247,1773162548675,-300.0,6.037e-05,2]
[408131248,1773162548704,-300.0,6.037e-05,2]
[408131249,1773162548730,-300.0,6.037e-05,2]
[408131250,1773162548751,-300.0,6.037e-05,2]
[408131251,1773162548771,-300.0,6.037e-05,2]
[408131252,1773162548792,-300.0,6.037e-05,2]
[408131253,1773162548813,-300.0,6.037e-05,2]
[408131254,1773162548834,-300.0,6.037e-05,2]
[408131255,1773162548855,-258.02434865,6.157e-05,2]
[408131256,1773162548884,-341.97565135,6.157e-05,2]
[408131257,1773162557283,-500.0,6.468e-05,2]
[408131258,1773162557306,-1000.0,6.468e-05,2]
[408131259,1773162557325,-1000.0,6.468e-05,2]
[408131260,1773162557346,-175.59424692,6.673e-05,2]
[408131261,1773162557366,-500.0,6.673e-05,2]
[408131262,1773162557386,-500.0,6.673e-05,2]
[408131263,1773162557407,-500.0,6.673e-05,2]
[408131264,1773162557427,-404.77816268,6.673e-05,2]
[408131265,1773162557448,-500.0,6.673e-05,2]
[408131266,1773162557483,-500.0,6.673e-05,2]
[408131267,1773162557502,-500.0,6.673e-05,2]
[408131268,1773162557525,-500.0,6.673e-05,2]
[408131269,1773162557546,-500.0,6.673e-05,2]
[408131270,1773162557567,-500.0,6.673e-05,2]
[408131271,1773162557587,-500.0,6.673e-05,2]
[408131272,1773162557607,-500.0,6.673e-05,2]
[408131273,1773162557628,-500.0,6.673e-05,2]
[408131274,1773162557647,-500.0,6.673e-05,2]
[408131275,1773162557667,-419.6275904,6.673e-05,2]
[408131276,1773162601870,-5000.0,6.606e-05,2]
[408131277,1773162601891,-212.0,6.672e-05,2]
[408131278,1773162601913,-80.3724096,6.673e-05,2]
[408131279,1773162601936,-500.0,6.673e-05,2]
[408131280,1773162601956,-500.0,6.673e-05,2]
[408131281,1773162601977,-500.0,6.673e-05,2]
[408131282,1773162602006,-500.0,6.673e-05,2]
[408131283,1773162602026,-500.0,6.673e-05,2]
[408131284,1773162602047,-500.0,6.673e-05,2]
[408131285,1773162602066,-263.23113679,6.673e-05,2]
[408131286,1773162602087,-500.0,6.699e-05,2]
[408131287,1773162602108,-500.0,6.699e-05,2]
[408131288,1773162602129,-444.39645361,6.699e-05,2]
[408131310,1773162631695,-46134.01031051,6.599e-05,2]
[408131312,1773162631706,-513.91725208,6.599e-05,2]
[408131314,1773162631717,-300.58662455,6.599e-05,2]
[408131357,1773162637945,-435.42165357,6.599e-05,2]
[408131358,1773162637956,-745877.75714328,6.599e-05,2]
[408131359,1773162637966,-323.67651381,6.599e-05,2]
[408131360,1773162637983,-8929.01571543,6.599e-05,2]
[408131361,1773162637994,-986.95716686,6.599e-05,2]
[408131403,1773162642315,-1075.08886253,6.533e-05,2]
[408131406,1773162642327,-10766.11790255,6.533e-05,2]
[408131408,1773162642336,-500.0,6.598e-05,2]
[408131410,1773162642346,-500.0,6.598e-05,2]
[408131412,1773162642355,-500.0,6.598e-05,2]
[408131414,1773162642363,-500.0,6.598e-05,2]
[408131417,1773162642372,-250.04319175,6.598e-05,2]
[408131419,1773162642381,-500.0,6.598e-05,2]
[408131421,1773162642390,-500.0,6.598e-05,2]
[408131423,1773162642400,-500.0,6.598e-05,2]
[408131425,1773162642409,-500.0,6.598e-05,2]
[408131427,1773162642418,-500.0,6.598e-05,2]
[408131430,1773162642427,-500.0,6.598e-05,2]
[408131432,1773162642437,-500.0,6.598e-05,2]
[408131434,1773162642446,-500.0,6.598e-05,2]
[408131436,1773162642455,-500.0,6.598e-05,2]
[408131438,1773162642464,-500.0,6.598e-05,2]
[408131440,1773162642473,-16796.21641768,6.599e-05,2]
[408131535,1773162643014,-11910.60790869,6.599e-05,2]
[408131798,1773162645752,-1842.80064921,6.599e-05,2]
[408133327,1773162709222,-2828.0,6.59e-05,2]
[408133328,1773162709243,-500.0,6.598e-05,2]
[408133329,1773162709265,-500.0,6.598e-05,2]
[408133330,1773162709288,-300.0,6.598e-05,2]
[408133331,1773162709312,-5872.0,6.599e-05,2]
[408133332,1773162722322,-10000.0,6.599e-05,2]
[408133333,1773162737437,-300.0,6.598e-05,2]
[408133334,1773162737462,-9400.0,6.599e-05,2]
[408133335,1773162756708,-9700.0,6.599e-05,2]
[408133336,1773162766684,-10000.0,6.599e-05,2]
[408133337,1773162775149,-10000.0,6.599e-05,2]
[408133338,1773162787406,-9000.0,6.599e-05,2]
[408133339,1773162797164,-277.78095789,6.499e-05,2]
[408133340,1773162797187,-9722.21904211,6.599e-05,2]
[408133341,1773162811788,-5000.0,6.533e-05,2]
[408133342,1773162811813,-1100.0,6.599e-05,2]
[408133343,1773162822745,-8100.0,6.599e-05,2]
[408133345,1773162838025,-1500.0,6.533e-05,2]
[408133346,1773162849037,-461.01449954,6.4e-05,2]
[408133347,1773162849061,-1538.98550046,6.533e-05,2]
[408133348,1773162857648,-990.63351736,6.4e-05,2]
[408133349,1773162857671,-1009.36648264,6.533e-05,2]
[408133350,1773162872519,-951.6480169,6.533e-05,2]
[408133351,1773162872551,-500.0,6.573e-05,2]
[408133352,1773162872578,-328.24964386,6.573e-05,2]
[408133353,1773162872600,-500.0,6.573e-05,2]
[408133354,1773162872623,-500.0,6.573e-05,2]
[408133355,1773162872646,-300.0,6.598e-05,2]
[408133356,1773162872673,-6320.10233924,6.599e-05,2]
[408133357,1773162894194,-5000.0,6.468e-05,2]
[408133358,1773162894216,-4800.0,6.599e-05,2]
[408133359,1773162913084,-5000.0,6.533e-05,2]
[408133360,1773162913107,-500.0,6.573e-05,2]
[408133361,1773162913130,-500.0,6.573e-05,2]
[408133362,1773162913152,-500.0,6.573e-05,2]
[408133363,1773162913172,-500.0,6.573e-05,2]
[408133364,1773162913193,-500.0,6.573e-05,2]
[408133365,1773162913213,-500.0,6.573e-05,2]
[408133366,1773162913233,-500.0,6.573e-05,2]
[408133367,1773162913255,-300.0,6.598e-05,2]
[408133368,1773162913278,-1400.0,6.599e-05,2]
[408133369,1773162928728,-5000.0,6.507e-05,2]
[408133370,1773162928752,-249.88106012,6.533e-05,2]
[408133371,1773162928775,-500.0,6.573e-05,2]
[408133372,1773162928796,-500.0,6.573e-05,2]
[408133373,1773162928818,-500.0,6.573e-05,2]
[408133374,1773162928841,-500.0,6.573e-05,2]
[408133375,1773162928862,-500.0,6.573e-05,2]
[408133376,1773162928883,-500.0,6.573e-05,2]
[408133377,1773162928904,-50.11893988,6.573e-05,2]
[408133378,1773162955943,-5000.0,6.378e-05,2]
[408133379,1773162955964,-344.00719254,6.442e-05,2]
[408133380,1773162955985,-2000.0,6.507e-05,2]
[408133381,1773162956004,-449.88106012,6.573e-05,2]
[408133382,1773162956023,-270.63054627,6.573e-05,2]
[408133383,1773162956072,-500.0,6.573e-05,2]
[408133384,1773162956112,-499.99999999,6.598e-05,2]
[408133385,1773162956152,-343.56240523,6.598e-05,2]
[408133386,1773162956191,-691.91879585,6.599e-05,2]
[408133387,1773162970836,-5000.0,6.468e-05,2]
[408133388,1773162970857,-3000.0,6.533e-05,2]
[408133389,1773162970878,-500.0,6.573e-05,2]
[408133390,1773162970900,-500.0,6.573e-05,2]
[408133392,1773162988036,-5000.0,6.166e-05,2]
[408133393,1773162988057,-159.056137,6.228e-05,2]
[408133394,1773162988077,-159.056137,6.491e-05,2]
[408133395,1773162988098,-4681.887726,6.507e-05,2]
[408133396,1773163003232,-636.58353363,6.4e-05,2]
[408133397,1773163003255,-1615.2717741,6.4e-05,2]
[408133398,1773163003275,-170.5,6.442e-05,2]
[408133399,1773163003298,-318.112274,6.507e-05,2]
[408133400,1773163003321,-500.0,6.573e-05,2]
[408133401,1773163003343,-500.0,6.573e-05,2]
[408133402,1773163003364,-500.0,6.573e-05,2]
[408133403,1773163003385,-335.59045923,6.598e-05,2]
[408133404,1773163003407,-300.0,6.598e-05,2]
[408133405,1773163003431,-4723.94195904,6.599e-05,2]
[408133406,1773163031668,-5000.0,6.507e-05,2]
[408133407,1773163031692,-500.0,6.573e-05,2]
[408133408,1773163031715,-500.0,6.573e-05,2]
[408133409,1773163031737,-473.32526547,6.573e-05,2]
[408133410,1773163031761,-500.0,6.573e-05,2]
[408133411,1773163031784,-300.0,6.598e-05,2]
[408133412,1773163031808,-2726.67473453,6.599e-05,2]
[408133413,1773163065533,-500.0,6.442e-05,2]
[408133414,1773163103186,-4500.0,6.442e-05,2]
[408133415,1773163103207,-5000.0,6.507e-05,2]
[408133416,1773163103226,-300.0,6.572e-05,2]
[408133417,1773163103244,-300.0,6.573e-05,2]
[408133418,1773163123457,-10100.0,6.499e-05,2]
[408133420,1773163171244,-5000.0,6.37e-05,2]
[408133421,1773163171266,-210.92538063,6.402e-05,2]
[408133422,1773163171289,-5000.0,6.434e-05,2]
[408133423,1773163171311,-189.07461937,6.473e-05,2]
[408133425,1773163198352,-310.92538063,6.473e-05,2]
[408133426,1773163198372,-500.0,6.473e-05,2]
[408133427,1773163198393,-300.0,6.498e-05,2]
[408133428,1773163198415,-9989.07461937,6.499e-05,2]
[408133429,1773163215584,-701.2863973,6.076e-05,2]
[408133430,1773163215605,-507.0,6.076e-05,2]
[408133431,1773163215626,-500.0,6.473e-05,2]
[408133432,1773163215646,-91.7136027,6.473e-05,2]
[408133433,1773163254968,-300.0,6.344e-05,2]
[408133434,1773163256897,1000.0,0.000102,120]
[408133599,1773163755158,-5000.0,4.95e-05,2]
[408133600,1773163755179,-200.0,4.973e-05,2]
[408133601,1773163755200,-300.0,4.999e-05,2]
[408133602,1773163755220,-149748.0132,5e-05,2]
[408133603,1773163756080,-500.0,4.973e-05,2]
[408133604,1773163756100,-108508.7332566,5e-05,2]
[408133605,1773163760098,-138591.74631026,5e-05,2]
[408133606,1773163762100,-99020.84805574,5e-05,2]
[408133787,1773163831925,-175.451988,4.9e-05,2]
[408133789,1773163831935,-5000.0,4.95e-05,2]
[408133791,1773163831945,-500.0,4.973e-05,2]
[408133793,1773163831954,-500.0,4.973e-05,2]
[408133795,1773163831964,-500.0,4.973e-05,2]
[408133797,1773163831975,-500.0,4.973e-05,2]
[408133800,1773163831986,-579.39799153,4.973e-05,2]
[408133802,1773163831996,-210.40727697,4.975e-05,2]
[408133803,1773163832007,-840.0,4.999e-05,2]
[408133805,1773163832016,-2869.36674235,5e-05,2]
[408134027,1773163838156,-1261.29243505,5e-05,2]
[408134028,1773163838167,-300.0,5.099e-05,2]
[408134029,1773163838176,-300.0,5.099e-05,2]
[408134030,1773163838186,-300.0,5.099e-05,2]
[408134031,1773163838196,-300.0,5.099e-05,2]
[408134032,1773163838205,-300.0,5.099e-05,2]
[408134033,1773163838214,-300.0,5.099e-05,2]
[408134034,1773163838224,-300.0,5.099e-05,2]
[408134035,1773163838234,-300.0,5.099e-05,2]
[408134036,1773163838245,-300.0,5.099e-05,2]
[408134037,1773163838255,-300.0,5.099e-05,2]
[408134038,1773163838265,-300.0,5.099e-05,2]
[408134039,1773163838274,-300.0,5.099e-05,2]
[408134040,1773163838284,-300.0,5.099e-05,2]
[408134041,1773163838294,-300.0,5.099e-05,2]
[408134042,1773163838304,-300.0,5.099e-05,2]
[408134043,1773163838313,-600.0,5.099e-05,2]
[408134044,1773163838322,-1000.0,5.521e-05,2]
[408134045,1773163838331,-500.0,5.521e-05,2]
[408134046,1773163838341,-500.0,5.521e-05,2]
[408134047,1773163838351,-1000.0,5.521e-05,2]
[408134048,1773163838361,-1000.0,5.521e-05,2]
[408134049,1773163838371,-720.0,5.609e-05,2]
[408134050,1773163838381,-176.31077228,5.931e-05,2]
[408134051,1773163838391,-500.0,6.068e-05,2]
[408134052,1773163838402,-1500.0,6.068e-05,2]
[408134053,1773163838413,-1115.12253755,6.068e-05,2]
[408134054,1773163838424,-2016.18046874,6.162e-05,2]
[408134055,1773163838433,-864.0,6.17e-05,2]
[408134056,1773163838443,-507.82365973,6.2e-05,2]
[408134057,1773163838452,-4661.26067458,6.262e-05,2]
[408134058,1773163838462,-1349.69948103,6.3e-05,2]
[408134059,1773163838471,-3537.30163631,6.3e-05,2]
[408134060,1773163838480,-3404.16340904,6.3e-05,2]
[408134061,1773163838490,-3883.6955644,6.3e-05,2]
[408134062,1773163838501,-3190.90770833,6.3e-05,2]
[408134063,1773163838510,-5159.56989467,6.3e-05,2]
[408134064,1773163838520,-4965.33418063,6.3e-05,2]
[408134065,1773163838530,-5657.87911482,6.3e-05,2]
[408134066,1773163838541,-553.97026602,6.3e-05,2]
[408134067,1773163838552,-1234.99600006,6.3e-05,2]
[408134068,1773163838564,-1368.2847843,6.3e-05,2]
[408134069,1773163838574,-500.0,6.353e-05,2]
[408134070,1773163838585,-500.0,6.353e-05,2]
[408134071,1773163838595,-500.0,6.353e-05,2]
[408134072,1773163838607,-500.0,6.353e-05,2]
[408134073,1773163838616,-205.966,6.369e-05,2]
[408134074,1773163838625,-37554.79187187,6.373e-05,2]
[408134075,1773163838708,-113446.44449697,6.373e-05,2]
[408134387,1773163843431,-15967.00849081,6.309e-05,2]
[408134389,1773163843443,-1580.71166212,6.309e-05,2]
[408134666,1773163845998,-258.58443364,6.309e-05,2]
[408134668,1773163846010,-21153.60152014,6.309e-05,2]
[408134670,1773163846021,-18692.25198258,6.309e-05,2]
[408134672,1773163846032,-1617.41432246,6.309e-05,2]
[408134676,1773163846053,-52761.5372047,6.309e-05,2]
[408134678,1773163846063,-1329540.49316831,6.373e-05,2]
[408134680,1773163846074,-10781.87829639,6.373e-05,2]
[408136676,1773164325030,170.963005,4.684e-05,120]
[408136677,1773164741151,-5000.0,4.207e-05,2]
[408136678,1773164741171,-5000.0,4.25e-05,2]
[408136679,1773164741194,-5000.0,4.293e-05,2]
[408136680,1773164741214,-1674.6964481,4.337e-05,2]
[408136681,1773164741236,-1200.0,4.453e-05,2]
[408136682,1773164741255,-300.0,4.454e-05,2]
[408136683,1773164741275,-300.0,4.454e-05,2]
[408136684,1773164741294,-300.0,4.454e-05,2]
[408136685,1773164741314,-300.0,4.454e-05,2]
[408136686,1773164741335,-256.22039404,4.568e-05,2]
[408136687,1773164741355,-170.963005,4.684e-05,2]
[408136688,1773164741375,-1680.0,4.898e-05,2]
[408136689,1773164741396,-420.0,4.899e-05,2]
[408136690,1773164741416,-420.0,4.899e-05,2]
[408136691,1773164741437,-300.0,4.899e-05,2]
[408136692,1773164741460,-420.0,4.899e-05,2]
[408136693,1773164741481,-2351.0,5.388e-05,2]
[408136694,1773164741501,-180.0,5.389e-05,2]
[408136695,1773164741523,-587.0,5.389e-05,2]
[408136696,1773164741543,-787.80944493,5.479e-05,2]
[408136697,1773164741565,-98901.12718981,5.51e-05,2]
[408136708,1773164825091,-300.0,4.619e-05,2]
[408136709,1773164825112,-10000.0,4.62e-05,2]
[408136710,1773164825137,-6463.7977161,4.62e-05,2]
[408136711,1773164825161,-420.0,5.081e-05,2]
[408136712,1773164825187,-5000.0,5.4e-05,2]
[408136713,1773164825218,-256.79598616,5.428e-05,2]
[408136714,1773164825240,-5000.0,5.455e-05,2]
[408136715,1773164825261,-500.0,5.493e-05,2]
[408136716,1773164825283,-500.0,5.493e-05,2]
[408136717,1773164825306,-500.0,5.493e-05,2]
[408136718,1773164825328,-500.0,5.493e-05,2]
[408136719,1773164825351,-112751.18684039,5.51e-05,2]
[408136721,1773164837083,-5000.0,5.438e-05,2]
[408136722,1773164837104,-500.0,5.493e-05,2]
[408136723,1773164837124,-500.0,5.493e-05,2]
[408136724,1773164837149,-92575.62665041,5.51e-05,2]
[408136725,1773164850281,-5000.0,5.455e-05,2]
[408136726,1773164850305,-86387.51352058,5.51e-05,2]
[408136760,1773165032084,-5000.0,5.4e-05,2]
[408136762,1773165032094,-1082.0,5.454e-05,2]
[408136764,1773165032104,-2718.61802318,5.455e-05,2]
[408136770,1773165032157,-2281.38197682,5.455e-05,2]
[408136772,1773165032166,-300.0,5.491e-05,2]
[408136774,1773165032176,-500.0,5.493e-05,2]
[408136775,1773165032186,-500.0,5.493e-05,2]
[408136777,1773165032196,-501.87658063,5.493e-05,2]
[408136779,1773165032208,-500.0,5.493e-05,2]
[408136781,1773165032217,-500.0,5.493e-05,2]
[408136783,1773165032227,-500.0,5.493e-05,2]
[408136785,1773165032236,-200.0,5.493e-05,2]
[408136787,1773165032247,-500.0,5.493e-05,2]
[408136789,1773165032256,-500.0,5.493e-05,2]
[408136791,1773165032265,-500.0,5.493e-05,2]
[408136793,1773165032275,-500.0,5.493e-05,2]
[408136795,1773165032285,-500.0,5.493e-05,2]
[408136797,1773165032294,-2669.58884815,5.509e-05,2]
[408136799,1773165032305,-1438.41222765,5.509e-05,2]
[408136801,1773165032315,-10399.30656328,5.51e-05,2]
[408136803,1773165032325,-324.47130679,5.51e-05,2]
[408136804,1773165032336,-7082.54395974,5.51e-05,2]
[408136805,1773165032347,-7498.06380252,5.51e-05,2]
[408136957,1773165038241,-1086.0,5.51e-05,2]
[408136958,1773165038273,-10154.16816895,5.51e-05,2]
[408136980,1773165042574,-3415.18511002,5.455e-05,2]
[408136982,1773165042583,-12383.90161694,5.51e-05,2]
[408137060,1773165043303,-301.75282352,5.51e-05,2]
[408137063,1773165043317,-1033.0,5.51e-05,2]
[408137089,1773165043537,-13949.86849799,5.51e-05,2]
[408137091,1773165043548,-700.0,5.51e-05,2]
[408137094,1773165043559,-337.72830889,5.51e-05,2]
[408137356,1773165046092,-23424.47013629,5.51e-05,2]
[408137361,1773165046123,-95233.65004317,5.51e-05,2]
[408137364,1773165046146,-3496.68495005,5.51e-05,2]
[408137366,1773165046157,-12624.68364021,5.51e-05,2]
[408137368,1773165046168,-1142.3617184,5.51e-05,2]
[408138039,1773165645918,-408.26874823,4.213e-05,2]
[408138040,1773165645931,-4591.73125177,4.213e-05,2]
[408138041,1773165645941,-188.9891784,4.255e-05,2]
[408138042,1773165645951,-219.27956983,5.372e-05,2]
[408138051,1773166150143,-5000.0,5.252e-05,2]
[408138052,1773166150164,-267.15138278,5.305e-05,2]
[408138053,1773166150184,-426.40326196,5.399e-05,2]
[408138054,1773166157104,-15.59673804,5.399e-05,2]
[408138055,1773166157126,-300.0,5.399e-05,2]
[408138056,1773166157148,-791.77367937,5.4e-05,2]
[408138057,1773166157171,-263.46061937,5.4e-05,2]
[408138058,1773166161084,-1604.91062472,5.4e-05,2]
[408138059,1773166166116,-210.59849297,5.4e-05,2]
[408138060,1773166166139,-451.11540744,5.4e-05,2]
[408138098,1773166232198,-296.92009493,5.346e-05,2]
[408138099,1773166232209,-4703.07990507,5.346e-05,2]
[408138102,1773166232229,-241.59892206,5.399e-05,2]
[408138106,1773166232257,-58.40107794,5.399e-05,2]
[408138108,1773166232268,-650.64892706,5.4e-05,2]
[408138178,1773166238491,-5000.0,5.293e-05,2]
[408138181,1773166238500,-747.36206081,5.4e-05,2]
[408138183,1773166238511,-455.63710521,5.4e-05,2]
[408138185,1773166238520,-449.013534,5.4e-05,2]
[408138187,1773166238529,-500.0,5.493e-05,2]
[408138189,1773166238539,-500.0,5.493e-05,2]
[408138191,1773166238549,-300.0,5.939e-05,2]
[408138193,1773166238561,-205.967,6.028e-05,2]
[408138195,1773166238570,-2736.71940169,6.05e-05,2]
[408138394,1773166240787,-10751.60267372,5.99e-05,2]
[408138397,1773166240799,-17238.39732629,6.05e-05,2]
[408138690,1773166243524,-1084.78756458,6.05e-05,2]
[408138691,1773166243535,-437.94669,6.05e-05,2]
[408138692,1773166243546,-744.00654836,6.05e-05,2]
[408138693,1773166243561,-18254.78738399,6.05e-05,2]
[408138694,1773166243635,-1297.21331,6.05e-05,2]
[408138952,1773166246270,-12665.19392241,6.05e-05,2]
[408138954,1773166246284,-20540.18836044,6.05e-05,2]
[408138957,1773166246295,-1245.14528569,6.05e-05,2]
[408139118,1773166855488,2000.0,0.000102,120]
[408139148,1773167361390,-962.8669173,4.847e-05,2]
[408139149,1773167361415,-519.20319714,4.896e-05,2]
[408139150,1773167361441,-277.15006087,4.921e-05,2]
[408139151,1773167361469,-4230.69333856,4.945e-05,2]
[408139152,1773167367150,-769.30666144,4.945e-05,2]
[408139153,1773167367236,-288.06149933,5.022e-05,2]
[408139154,1773167370234,-587.23790419,5.022e-05,2]
[408139158,1773167432418,-23336.4445499,4.491e-05,2]
[408139159,1773167432427,-5000.0,4.971e-05,2]
[408139160,1773167432437,-554.73935948,5.022e-05,2]
[408139161,1773167432446,-500.32102023,5.233e-05,2]
[408139162,1773167432457,-929.71774277,5.233e-05,2]
[408139163,1773167432466,-209.02095813,5.313e-05,2]
[408139164,1773167432475,-1200.0,5.443e-05,2]
[408139165,1773167432484,-1430.038763,5.444e-05,2]
[408139166,1773167432493,-300.0,5.572e-05,2]
[408139167,1773167432502,-300.0,5.572e-05,2]
[408139168,1773167432511,-300.0,5.572e-05,2]
[408139169,1773167432522,-500.0,5.573e-05,2]
[408139170,1773167432531,-500.0,5.573e-05,2]
[408139171,1773167432540,-500.0,5.573e-05,2]
[408139172,1773167432550,-500.0,5.573e-05,2]